Workbook

Sheet Dati Edificio
C2: ASSEVERAZIONE RISCHIO SISMICO
C3: DM. N.58 DEL 28/02/2017 | P3: Istruzioni
C4: Integr. DM. N.65 DEL 07/03/2017 - DM. N.24 del 09/01/2020 - DM. N.329 del 06/08/2020 | P4: Compilare Celle evidenziate
C5: ALLEGATO A
P6: Specificare Se:
C7: UBICAZIONE IMMOBILE | P7: - Considerare PGA=ag
C8: COMUNE DI
C9: INDIRIZZO
C10: DATI CATASTALI
C11: FOGLIO | D11: 12 | E11: P.LLA | F11: 12 | G11: SUB | H11: 1
C12: COORDINATE GEOGRAFICHE
D13: LATITUDINE | G13: LONGITUDINE | K13: FUSO
C14: SPIGOLO 1 | K14: 33
C15: SPIGOLO 2 | K15: 33
C17: S=Ss*St= | D17: 1.2 | P17: - Considerare PGA = ag·S
C19: ACCELERAZIONI AL SUOLO di riferimento
C21: STATO LIMITE | D21: TR | E21: ag (g) | F21: PGAD | K21: h
C22: SLO | D22: 45 | E22: 0.033 | F22: =IF(G23=1,agSLO,agSLO*SsSt) -> 0.0396 | K22: =IF(E22>=0.25,1/'All.A DM.65'!$D$41,IF(E22>=0.15,1/'All.A DM.65'!$D$42,IF(E22>=0.05,1/'All.A DM.65'!$D$43,1/'All.A DM.65'!$D$44))) -> 2.941176471
C23: SLD | D23: 75 | E23: 0.041 | F23: =IF(G23=1,agSLD,agSLD*SsSt) -> 0.0492 | G23: 2 | K23: =IF(E23>=0.25,1/'All.A DM.65'!$D$41,IF(E23>=0.15,1/'All.A DM.65'!$D$42,IF(E23>=0.05,1/'All.A DM.65'!$D$43,1/'All.A DM.65'!$D$44))) -> 2.941176471
C24: SLV | D24: 712 | E24: 0.092 | F24: =IF(G23=1,agSLV,agSLV*SsSt) -> 0.1104 | K24: =IF(E24>=0.25,1/'All.A DM.65'!$D$41,IF(E24>=0.15,1/'All.A DM.65'!$D$42,IF(E24>=0.05,1/'All.A DM.65'!$D$43,1/'All.A DM.65'!$D$44))) -> 2.808988764
C25: SLC | D25: 1462 | E25: 0.114 | F25: =IF(G23=1,agSLC,agSLC*SsSt) -> 0.1368 | K25: =IF(E25>=0.25,1/'All.A DM.65'!$D$41,IF(E25>=0.15,1/'All.A DM.65'!$D$42,IF(E25>=0.05,1/'All.A DM.65'!$D$43,1/'All.A DM.65'!$D$44))) -> 2.808988764
P27: Specificare il tipo di analisi eseguita e calcolare gli indici di rischio
P28: compilando i relativi fogli di calcolo
P29: Analisi Lineare
C30: 1 | P30: Analisi non Lineare - PushOver
E31: Indice di Rischio Sismico | G31: PAM | I31: IS-V
C32: Stato di Fatto | E32: =IF(C30=1,'Analisi Lineare-Stato di Fatto'!G36,'PushOver - Stato di Fatto'!G36) -> A | G32: =IF(C30=1,'Analisi Lineare-Stato di Fatto'!I25,'PushOver - Stato di Fatto'!I25) -> 0.008729192092 | H32: =IF(C30=1,'Analisi Lineare-Stato di Fatto'!D28,'PushOver - Stato di Fatto'!D28) -> A | I32: =IF(C30=1,'Analisi Lineare-Stato di Fatto'!I26,'PushOver - Stato di Fatto'!I26) -> 1 | J32: =IF(C30=1,'Analisi Lineare-Stato di Fatto'!H28,'PushOver - Stato di Fatto'!H28) -> A+ | P32: Nei due Fogli di Calcolo, Specificare Valori Accelerazione al Suolo
C33: Stato di Progetto | E33: =IF(C30=1,'Analisi Lineare-Stato Progetto'!G36,'PushOver - Stato di Progetto'!G36) -> A | G33: =IF(C30=1,'Analisi Lineare-Stato Progetto'!I25,'PushOver - Stato di Progetto'!I25) -> 0.007239911049 | H33: =IF(C30=1,'Analisi Lineare-Stato Progetto'!D28,'PushOver - Stato di Progetto'!D28) -> A | I33: =IF(C30=1,'Analisi Lineare-Stato Progetto'!I26,'PushOver - Stato di Progetto'!I26) -> 1 | J33: =IF($C$30=1,'Analisi Lineare-Stato Progetto'!H28,'PushOver - Stato di Progetto'!H28) -> A+ | P33: per cui la struttura raggiunge lo stato limite PGA(SL)
P34: In via semplificata, è possibile effettuare le verifiche limitatamente allo SLV (stato limite per la salvaguardia della vita) ed allo SLD (stato limite di danno).
E37: =IF($F$41="A+","<<","") ->  | F37: Stato di Fatto
E38: =IF($F$41="A","<<","") -> << | F38: CLASSE
E39: =IF($F$41="B","<<","") -> 
E40: =IF($F$41="C","<<","") ->  | F40: DI RISCHIO SISMICO
E41: =IF($F$41="D","<<","") ->  | F41: =E32 -> A
E42: =IF($F$41="E","<<","") -> 
E43: =IF($F$41="F","<<","") -> 
E44: =IF($F$41="G","<<","") -> 
E46: =IF($F$50="A+","<<","") ->  | F46: Stato di Progetto
E47: =IF($F$50="A","<<","") -> << | F47: CLASSE
E48: =IF($F$50="B","<<","") -> 
E49: =IF($F$50="C","<<","") ->  | F49: DI RISCHIO SISMICO
E50: =IF($F$50="D","<<","") ->  | F50: =E33 -> A
E51: =IF($F$50="E","<<","") -> 
E52: =IF($F$50="F","<<","") -> 
E53: =IF($F$50="G","<<","") -> 

Sheet Analisi Lineare-Stato di Fatto
B2: ANALISI STRUTTURA - STATO DI FATTO
B4: ACCELERAZIONI AL SUOLO DI CAPACITA'
B5: PGAC(SLO) | C5: 0.0396
B6: PGAC(SLD) | C6: 0.0492
B7: PGAC(SLV) | C7: 0.1104
B8: PGAC(SLC) | C8: 0.1368
B10: PERIODI DI RITORNO TrC=TrD(PGAC/PGAD)h | F10: FREQUENZA MEDIA ANNUA DI SUPERAMENTO
B11: TrC (SLO) | C11: =IF(M11>$M$13,$M$13,M11) -> 45 | G11: l(SLO) | H11: =IF(C11<>0,1/C11,IF($H$13<>0,1.67*$H$13,0)) -> 0.02222222222 | M11: =ROUND('Dati Edificio'!D22*(C5/'Dati Edificio'!F22)^'Dati Edificio'!K22,0) -> 45
B12: TrC (SLD) | C12: =IF(M12>$M$13,$M$13,M12) -> 75 | G12: l(SLD) | H12: =IF(C12<>0,1/C12,0) -> 0.01333333333 | M12: =ROUND('Dati Edificio'!D23*(C6/'Dati Edificio'!F23)^'Dati Edificio'!K23,0) -> 75
B13: TrC (SLV) | C13: =M13 -> 712 | G13: l(SLV) | H13: =IF(C13<>0,1/C13,0) -> 0.001404494382 | M13: =ROUND('Dati Edificio'!D24*(C7/'Dati Edificio'!F24)^'Dati Edificio'!K24,0) -> 712
B14: TrC (SLC) | C14: =M14 -> 1462 | G14: l(SLC) | H14: =IF(C14<>0,1/C14,IF($H$13<>0,0.49*$H$13,0)) -> 0.000683994528 | M14: =ROUND('Dati Edificio'!D25*(C8/'Dati Edificio'!F25)^'Dati Edificio'!K24,0) -> 1462
B16: PERCENTUALE COSTO DI RICOSTRUZIONE
B17: STATO LIMITE | C17: Trc | D17: l | E17: CR % | F17: l(SLi-1)-l(SLi) | H17: [CR(SLi-1)+CR(SLi)]/2
B18: SLID | C18: 10 | D18: 0.1 | E18: ='All.A DM.65'!G34 -> 0
B19: SLO | C19: =C11 -> 45 | D19: =H11 -> 0.02222222222 | E19: ='All.A DM.65'!$G$33 -> 0.07 | F19: =D18-D19 -> 0.07777777778 | H19: =(E18+E19)/2 -> 0.035
B20: SLD | C20: =C12 -> 75 | D20: =H12 -> 0.01333333333 | E20: ='All.A DM.65'!$G$32 -> 0.15 | F20: =D19-D20 -> 0.008888888889 | H20: =(E19+E20)/2 -> 0.11
B21: SLV | C21: =C13 -> 712 | D21: =H13 -> 0.001404494382 | E21: ='All.A DM.65'!$G$31 -> 0.5 | F21: 0.01192883895 | H21: 0.325
B22: SLC | C22: =C14 -> 1462 | D22: =H14 -> 0.000683994528 | E22: ='All.A DM.65'!$G$30 -> 0.8 | F22: =D21-D22 -> 0.000720499854 | H22: 0.65
B23: SLR | C23: =C14 -> 1462 | D23: 0 | E23: ='All.A DM.65'!$G$29 -> 1
B25: PAM = | C25: S5i=2[l(SLi-1)-l(SLi)]*[CR(SLi-1)+CR(SLi)]/2+l(SLC)*CR(SLR) = | I25: =F19*H19+F20*H20+F21*H21+F22*H22+D22*E23 -> 0.008729192092
B26: IS-V = | C26: PGAC(SLV)/PGAD(SLV) = | I26: =C7/'Dati Edificio'!$F$24 -> 1
C28: CLASSE PAM | D28: =IF(MID(M28,2,1)="+",MID(M28,1,2),MID(M28,1,1)) -> A | E28: PAM | G28: CLASSE IS-V | H28: =IF(MID(M29,2,1)="+",MID(M29,1,2),MID(M29,1,1)) -> A+ | I28: IS-V | M28: =IF(I25<='All.A DM.65'!$F$5,'All.A DM.65'!$G$5,IF(I25<='All.A DM.65'!$F$6,'All.A DM.65'!$G$6,IF(I25<='All.A DM.65'!$F$7,'All.A DM.65'!$G$7,IF(I25<='All.A DM.65'!$F$8,'All.A DM.65'!$G$8,IF(I25<='All.A DM.65'!$F$9,'All.A DM.65'!$G$9,IF(I25<='All.A DM.65'!$F$10,'All.A DM.65'!$G$10,IF(I25<='All.A DM.65'!$F$11,'All.A DM.65'!$G$11,'All.A DM.65'!$G$12))))))) -> APAM
M29: =IF(I26>='All.A DM.65'!$B$17,'All.A DM.65'!$G$17,IF(I26>='All.A DM.65'!$B$18,'All.A DM.65'!$G$18,IF(I26>='All.A DM.65'!$B$19,'All.A DM.65'!$G$19,IF(I26>='All.A DM.65'!$B$20,'All.A DM.65'!$G$20,IF(I26>='All.A DM.65'!$B$21,'All.A DM.65'!$G$21,IF(I26>='All.A DM.65'!$B$22,'All.A DM.65'!$G$22,'All.A DM.65'!$G$23)))))) -> A+IS-V
F32: =IF($G$36="A+","<<","") ->  | G32: Stato di Fatto
F33: =IF($G$36="A","<<","") -> << | G33: CLASSE
F34: =IF($G$36="B","<<","") -> 
F35: =IF($G$36="C","<<","") ->  | G35: DI RISCHIO SISMICO
F36: =IF($G$36="D","<<","") ->  | G36: =IF(CODE(D28)=CODE(H28),IF(MID(D28,2,1)="+",H28,D28),IF(CODE(D28)<CODE(H28),H28,D28)) -> A | J36: =IF(G36<>D28,IF(G36<>H28,"SPECIFICARE CORRETTAMENTE CLASSE",""),"") -> 
F37: =IF($G$36="E","<<","") -> 
F38: =IF($G$36="F","<<","") -> 
F39: =IF($G$36="G","<<","") -> 

Sheet Analisi Lineare-Stato Progetto
B2: ANALISI STRUTTURA - STATO DI PROGETTO
B4: ACCELERAZIONI AL SUOLO DI CAPACITA'
B5: PGAC(SLO)
B6: PGAC(SLD) | C6: 0.0492
B7: PGAC(SLV) | C7: 0.1104
B8: PGAC(SLC)
B10: PERIODI DI RITORNO TrC=TrD(PGAC/PGAD)h | F10: FREQUENZA MEDIA ANNUA DI SUPERAMENTO
B11: TrC (SLO) | C11: =IF(M11>$M$13,$M$13,M11) -> 0 | G11: l(SLO) | H11: =IF(C11<>0,1/C11,IF($H$13<>0,1.67*$H$13,0)) -> 0.002345505618 | M11: =ROUND('Dati Edificio'!D22*(C5/'Dati Edificio'!F22)^'Dati Edificio'!K22,0) -> 0
B12: TrC (SLD) | C12: =IF(M12>$M$13,$M$13,M12) -> 75 | G12: l(SLD) | H12: =IF(C12<>0,1/C12,0) -> 0.01333333333 | M12: =ROUND('Dati Edificio'!D23*(C6/'Dati Edificio'!F23)^'Dati Edificio'!K23,0) -> 75
B13: TrC (SLV) | C13: =M13 -> 712 | G13: l(SLV) | H13: =IF(C13<>0,1/C13,0) -> 0.001404494382 | M13: =ROUND('Dati Edificio'!D24*(C7/'Dati Edificio'!F24)^'Dati Edificio'!K24,0) -> 712
B14: TrC (SLC) | C14: =M14 -> 0 | G14: l(SLC) | H14: =IF(C14<>0,1/C14,IF($H$13<>0,0.49*$H$13,0)) -> 0.0006882022472 | M14: =ROUND('Dati Edificio'!D25*(C8/'Dati Edificio'!F25)^'Dati Edificio'!K24,0) -> 0
B16: PERCENTUALE COSTO DI RICOSTRUZIONE
B17: STATO LIMITE | C17: Trc | D17: l | E17: CR % | F17: l(SLi-1)-l(SLi) | H17: [CR(SLi-1)+CR(SLi)]/2
B18: SLID | C18: 10 | D18: 0.1 | E18: ='All.A DM.65'!G34 -> 0
B19: SLO | C19: =C11 -> 0 | D19: =H11 -> 0.002345505618 | E19: ='All.A DM.65'!$G$33 -> 0.07 | F19: =D18-D19 -> 0.09765449438 | H19: =(E18+E19)/2 -> 0.035
B20: SLD | C20: =C12 -> 75 | D20: =H12 -> 0.01333333333 | E20: ='All.A DM.65'!$G$32 -> 0.15 | F20: =D19-D20 -> -0.01098782772 | H20: =(E19+E20)/2 -> 0.11
B21: SLV | C21: =C13 -> 712 | D21: =H13 -> 0.001404494382 | E21: ='All.A DM.65'!$G$31 -> 0.5 | F21: 0.01192883895 | H21: 0.325
B22: SLC | C22: =C14 -> 0 | D22: =H14 -> 0.0006882022472 | E22: ='All.A DM.65'!$G$30 -> 0.8 | F22: =D21-D22 -> 0.0007162921348 | H22: 0.65
B23: SLR | C23: =C14 -> 0 | D23: 0 | E23: ='All.A DM.65'!$G$29 -> 1
B25: PAM = | C25: S5i=2[l(SLi-1)-l(SLi)]*[CR(SLi-1)+CR(SLi)]/2+l(SLC)*CR(SLR) = | I25: =F19*H19+F20*H20+F21*H21+F22*H22+D22*E23 -> 0.007239911049
B26: IS-V = | C26: PGAC(SLV)/PGAD(SLV) = | I26: =C7/'Dati Edificio'!$F$24 -> 1
C28: CLASSE PAM | D28: =IF(MID(M28,2,1)="+",MID(M28,1,2),MID(M28,1,1)) -> A | E28: PAM | G28: CLASSE IS-V | H28: =IF(MID(M29,2,1)="+",MID(M29,1,2),MID(M29,1,1)) -> A+ | I28: IS-V | M28: =IF(I25<='All.A DM.65'!$F$5,'All.A DM.65'!$G$5,IF(I25<='All.A DM.65'!$F$6,'All.A DM.65'!$G$6,IF(I25<='All.A DM.65'!$F$7,'All.A DM.65'!$G$7,IF(I25<='All.A DM.65'!$F$8,'All.A DM.65'!$G$8,IF(I25<='All.A DM.65'!$F$9,'All.A DM.65'!$G$9,IF(I25<='All.A DM.65'!$F$10,'All.A DM.65'!$G$10,IF(I25<='All.A DM.65'!$F$11,'All.A DM.65'!$G$11,'All.A DM.65'!$G$12))))))) -> APAM
M29: =IF(I26>='All.A DM.65'!$B$17,'All.A DM.65'!$G$17,IF(I26>='All.A DM.65'!$B$18,'All.A DM.65'!$G$18,IF(I26>='All.A DM.65'!$B$19,'All.A DM.65'!$G$19,IF(I26>='All.A DM.65'!$B$20,'All.A DM.65'!$G$20,IF(I26>='All.A DM.65'!$B$21,'All.A DM.65'!$G$21,IF(I26>='All.A DM.65'!$B$22,'All.A DM.65'!$G$22,'All.A DM.65'!$G$23)))))) -> A+IS-V
F32: =IF($G$36="A+","<<","") ->  | G32: Stato di Progetto
F33: =IF($G$36="A","<<","") -> << | G33: CLASSE
F34: =IF($G$36="B","<<","") -> 
F35: =IF($G$36="C","<<","") ->  | G35: DI RISCHIO SISMICO
F36: =IF($G$36="D","<<","") ->  | G36: =IF(CODE(D28)=CODE(H28),IF(MID(D28,2,1)="+",H28,D28),IF(CODE(D28)<CODE(H28),H28,D28)) -> A | J36: =IF(G36<>D28,IF(G36<>H28,"SPECIFICARE CORRETTAMENTE CLASSE",""),"") -> 
F37: =IF($G$36="E","<<","") -> 
F38: =IF($G$36="F","<<","") -> 
F39: =IF($G$36="G","<<","") -> 

Sheet PushOver - Stato di Fatto (hidden)
B2: ANALISI STRUTTURA - STATO DI FATTO
N3: N. PUSH-OVER | O3: Angolo Sisma | P3: PGA(SLO) | Q3: PGA(SLD) | R3: PGA(SLV) | U3: PAM | V3: CLASSE PAM | W3: IS-V | X3: CLASSE IS-V
B4: ACCELERAZIONI AL SUOLO DI CAPACITA' | N4: 1 - DISTRIB. FORZE SECONDO DEFORMATA MODALE +Ecc5% | O4: 0 | P4: 0.03 | Q4: 0.04 | R4: 0.13 | S4: =IF(W4=$W$20,"X","") -> X | T4: 1 | U4: 0.009822954617 | V4: =IF(U4<='All.A DM.65'!$F$5,'All.A DM.65'!$G$5,IF(U4<='All.A DM.65'!$F$6,'All.A DM.65'!$G$6,IF(U4<='All.A DM.65'!$F$7,'All.A DM.65'!$G$7,IF(U4<='All.A DM.65'!$F$8,'All.A DM.65'!$G$8,IF(U4<='All.A DM.65'!$F$9,'All.A DM.65'!$G$9,IF(U4<='All.A DM.65'!$F$10,'All.A DM.65'!$G$10,IF(U4<='All.A DM.65'!$F$11,'All.A DM.65'!$G$11,'All.A DM.65'!$G$12))))))) -> APAM | W4: 1.177536232 | X4: =IF(W4>='All.A DM.65'!$B$17,'All.A DM.65'!$G$17,IF(W4>='All.A DM.65'!$B$18,'All.A DM.65'!$G$18,IF(W4>='All.A DM.65'!$B$19,'All.A DM.65'!$G$19,IF(W4>='All.A DM.65'!$B$20,'All.A DM.65'!$G$20,IF(W4>='All.A DM.65'!$B$21,'All.A DM.65'!$G$21,IF(W4>='All.A DM.65'!$B$22,'All.A DM.65'!$G$22,'All.A DM.65'!$G$23)))))) -> A+IS-V | Y4: 10.86956522
B5: PGAC(SLO) | C5: 0.0396 | N5: 2 - DISTRIB. FORZE SECONDO DEFORMATA MODALE +Ecc5% | O5: 180 | S5: =IF(W5=$W$20,"X","") ->  | T5: 2 | V5: =IF(U5<='All.A DM.65'!$F$5,'All.A DM.65'!$G$5,IF(U5<='All.A DM.65'!$F$6,'All.A DM.65'!$G$6,IF(U5<='All.A DM.65'!$F$7,'All.A DM.65'!$G$7,IF(U5<='All.A DM.65'!$F$8,'All.A DM.65'!$G$8,IF(U5<='All.A DM.65'!$F$9,'All.A DM.65'!$G$9,IF(U5<='All.A DM.65'!$F$10,'All.A DM.65'!$G$10,IF(U5<='All.A DM.65'!$F$11,'All.A DM.65'!$G$11,'All.A DM.65'!$G$12))))))) -> A+PAM | X5: =IF(W5>='All.A DM.65'!$B$17,'All.A DM.65'!$G$17,IF(W5>='All.A DM.65'!$B$18,'All.A DM.65'!$G$18,IF(W5>='All.A DM.65'!$B$19,'All.A DM.65'!$G$19,IF(W5>='All.A DM.65'!$B$20,'All.A DM.65'!$G$20,IF(W5>='All.A DM.65'!$B$21,'All.A DM.65'!$G$21,IF(W5>='All.A DM.65'!$B$22,'All.A DM.65'!$G$22,'All.A DM.65'!$G$23)))))) -> FIS-V
B6: PGAC(SLD) | C6: 0.0492 | N6: 3 - DISTRIB. FORZE SECONDO DEFORMATA MODALE +Ecc5% | O6: 90 | S6: =IF(W6=$W$20,"X","") ->  | T6: 3 | V6: =IF(U6<='All.A DM.65'!$F$5,'All.A DM.65'!$G$5,IF(U6<='All.A DM.65'!$F$6,'All.A DM.65'!$G$6,IF(U6<='All.A DM.65'!$F$7,'All.A DM.65'!$G$7,IF(U6<='All.A DM.65'!$F$8,'All.A DM.65'!$G$8,IF(U6<='All.A DM.65'!$F$9,'All.A DM.65'!$G$9,IF(U6<='All.A DM.65'!$F$10,'All.A DM.65'!$G$10,IF(U6<='All.A DM.65'!$F$11,'All.A DM.65'!$G$11,'All.A DM.65'!$G$12))))))) -> A+PAM | X6: =IF(W6>='All.A DM.65'!$B$17,'All.A DM.65'!$G$17,IF(W6>='All.A DM.65'!$B$18,'All.A DM.65'!$G$18,IF(W6>='All.A DM.65'!$B$19,'All.A DM.65'!$G$19,IF(W6>='All.A DM.65'!$B$20,'All.A DM.65'!$G$20,IF(W6>='All.A DM.65'!$B$21,'All.A DM.65'!$G$21,IF(W6>='All.A DM.65'!$B$22,'All.A DM.65'!$G$22,'All.A DM.65'!$G$23)))))) -> FIS-V
B7: PGAC(SLV) | C7: 0.1104 | N7: 4 - DISTRIB. FORZE SECONDO DEFORMATA MODALE +Ecc5% | O7: 270 | T7: 4 | V7: =IF(U7<='All.A DM.65'!$F$5,'All.A DM.65'!$G$5,IF(U7<='All.A DM.65'!$F$6,'All.A DM.65'!$G$6,IF(U7<='All.A DM.65'!$F$7,'All.A DM.65'!$G$7,IF(U7<='All.A DM.65'!$F$8,'All.A DM.65'!$G$8,IF(U7<='All.A DM.65'!$F$9,'All.A DM.65'!$G$9,IF(U7<='All.A DM.65'!$F$10,'All.A DM.65'!$G$10,IF(U7<='All.A DM.65'!$F$11,'All.A DM.65'!$G$11,'All.A DM.65'!$G$12))))))) -> A+PAM | X7: =IF(W7>='All.A DM.65'!$B$17,'All.A DM.65'!$G$17,IF(W7>='All.A DM.65'!$B$18,'All.A DM.65'!$G$18,IF(W7>='All.A DM.65'!$B$19,'All.A DM.65'!$G$19,IF(W7>='All.A DM.65'!$B$20,'All.A DM.65'!$G$20,IF(W7>='All.A DM.65'!$B$21,'All.A DM.65'!$G$21,IF(W7>='All.A DM.65'!$B$22,'All.A DM.65'!$G$22,'All.A DM.65'!$G$23)))))) -> FIS-V
B8: PGAC(SLC) | C8: 0.1368 | N8: 5 - DISTRIB. FORZE PROPORZIONALE ALLE MASSE +Ecc5% | O8: 0 | T8: 5 | V8: =IF(U8<='All.A DM.65'!$F$5,'All.A DM.65'!$G$5,IF(U8<='All.A DM.65'!$F$6,'All.A DM.65'!$G$6,IF(U8<='All.A DM.65'!$F$7,'All.A DM.65'!$G$7,IF(U8<='All.A DM.65'!$F$8,'All.A DM.65'!$G$8,IF(U8<='All.A DM.65'!$F$9,'All.A DM.65'!$G$9,IF(U8<='All.A DM.65'!$F$10,'All.A DM.65'!$G$10,IF(U8<='All.A DM.65'!$F$11,'All.A DM.65'!$G$11,'All.A DM.65'!$G$12))))))) -> A+PAM | X8: =IF(W8>='All.A DM.65'!$B$17,'All.A DM.65'!$G$17,IF(W8>='All.A DM.65'!$B$18,'All.A DM.65'!$G$18,IF(W8>='All.A DM.65'!$B$19,'All.A DM.65'!$G$19,IF(W8>='All.A DM.65'!$B$20,'All.A DM.65'!$G$20,IF(W8>='All.A DM.65'!$B$21,'All.A DM.65'!$G$21,IF(W8>='All.A DM.65'!$B$22,'All.A DM.65'!$G$22,'All.A DM.65'!$G$23)))))) -> FIS-V
N9: 6 - DISTRIB. FORZE PROPORZIONALE ALLE MASSE +Ecc5% | O9: 180 | T9: 6 | V9: =IF(U9<='All.A DM.65'!$F$5,'All.A DM.65'!$G$5,IF(U9<='All.A DM.65'!$F$6,'All.A DM.65'!$G$6,IF(U9<='All.A DM.65'!$F$7,'All.A DM.65'!$G$7,IF(U9<='All.A DM.65'!$F$8,'All.A DM.65'!$G$8,IF(U9<='All.A DM.65'!$F$9,'All.A DM.65'!$G$9,IF(U9<='All.A DM.65'!$F$10,'All.A DM.65'!$G$10,IF(U9<='All.A DM.65'!$F$11,'All.A DM.65'!$G$11,'All.A DM.65'!$G$12))))))) -> A+PAM | X9: =IF(W9>='All.A DM.65'!$B$17,'All.A DM.65'!$G$17,IF(W9>='All.A DM.65'!$B$18,'All.A DM.65'!$G$18,IF(W9>='All.A DM.65'!$B$19,'All.A DM.65'!$G$19,IF(W9>='All.A DM.65'!$B$20,'All.A DM.65'!$G$20,IF(W9>='All.A DM.65'!$B$21,'All.A DM.65'!$G$21,IF(W9>='All.A DM.65'!$B$22,'All.A DM.65'!$G$22,'All.A DM.65'!$G$23)))))) -> FIS-V
B10: PERIODI DI RITORNO TrC=TrD(PGAC/PGAD)h | F10: FREQUENZA MEDIA ANNUA DI SUPERAMENTO | N10: 7 - DISTRIB. FORZE PROPORZIONALE ALLE MASSE +Ecc5% | O10: 90 | T10: 7 | V10: =IF(U10<='All.A DM.65'!$F$5,'All.A DM.65'!$G$5,IF(U10<='All.A DM.65'!$F$6,'All.A DM.65'!$G$6,IF(U10<='All.A DM.65'!$F$7,'All.A DM.65'!$G$7,IF(U10<='All.A DM.65'!$F$8,'All.A DM.65'!$G$8,IF(U10<='All.A DM.65'!$F$9,'All.A DM.65'!$G$9,IF(U10<='All.A DM.65'!$F$10,'All.A DM.65'!$G$10,IF(U10<='All.A DM.65'!$F$11,'All.A DM.65'!$G$11,'All.A DM.65'!$G$12))))))) -> A+PAM | X10: =IF(W10>='All.A DM.65'!$B$17,'All.A DM.65'!$G$17,IF(W10>='All.A DM.65'!$B$18,'All.A DM.65'!$G$18,IF(W10>='All.A DM.65'!$B$19,'All.A DM.65'!$G$19,IF(W10>='All.A DM.65'!$B$20,'All.A DM.65'!$G$20,IF(W10>='All.A DM.65'!$B$21,'All.A DM.65'!$G$21,IF(W10>='All.A DM.65'!$B$22,'All.A DM.65'!$G$22,'All.A DM.65'!$G$23)))))) -> FIS-V
B11: TrC (SLO) | C11: =IF(L11>$L$13,$L$13,L11) -> 45 | G11: l(SLO) | H11: =IF(C11<>0,1/C11,IF($H$13<>0,1.67*$H$13,0)) -> 0.02222222222 | L11: =ROUND('Dati Edificio'!D22*(C5/'Dati Edificio'!F22)^'Dati Edificio'!K22,0) -> 45 | N11: 8 - DISTRIB. FORZE PROPORZIONALE ALLE MASSE +Ecc5% | O11: 270 | T11: 8 | V11: =IF(U11<='All.A DM.65'!$F$5,'All.A DM.65'!$G$5,IF(U11<='All.A DM.65'!$F$6,'All.A DM.65'!$G$6,IF(U11<='All.A DM.65'!$F$7,'All.A DM.65'!$G$7,IF(U11<='All.A DM.65'!$F$8,'All.A DM.65'!$G$8,IF(U11<='All.A DM.65'!$F$9,'All.A DM.65'!$G$9,IF(U11<='All.A DM.65'!$F$10,'All.A DM.65'!$G$10,IF(U11<='All.A DM.65'!$F$11,'All.A DM.65'!$G$11,'All.A DM.65'!$G$12))))))) -> A+PAM | X11: =IF(W11>='All.A DM.65'!$B$17,'All.A DM.65'!$G$17,IF(W11>='All.A DM.65'!$B$18,'All.A DM.65'!$G$18,IF(W11>='All.A DM.65'!$B$19,'All.A DM.65'!$G$19,IF(W11>='All.A DM.65'!$B$20,'All.A DM.65'!$G$20,IF(W11>='All.A DM.65'!$B$21,'All.A DM.65'!$G$21,IF(W11>='All.A DM.65'!$B$22,'All.A DM.65'!$G$22,'All.A DM.65'!$G$23)))))) -> FIS-V
B12: TrC (SLD) | C12: =IF(L12>$L$13,$L$13,L12) -> 75 | G12: l(SLD) | H12: =IF(C12<>0,1/C12,0) -> 0.01333333333 | L12: =ROUND('Dati Edificio'!D23*(C6/'Dati Edificio'!F23)^'Dati Edificio'!K23,0) -> 75 | N12: 9 - DISTRIB. FORZE SECONDO DEFORMATA MODALE -Ecc5% | O12: 0 | T12: 9 | V12: =IF(U12<='All.A DM.65'!$F$5,'All.A DM.65'!$G$5,IF(U12<='All.A DM.65'!$F$6,'All.A DM.65'!$G$6,IF(U12<='All.A DM.65'!$F$7,'All.A DM.65'!$G$7,IF(U12<='All.A DM.65'!$F$8,'All.A DM.65'!$G$8,IF(U12<='All.A DM.65'!$F$9,'All.A DM.65'!$G$9,IF(U12<='All.A DM.65'!$F$10,'All.A DM.65'!$G$10,IF(U12<='All.A DM.65'!$F$11,'All.A DM.65'!$G$11,'All.A DM.65'!$G$12))))))) -> A+PAM | X12: =IF(W12>='All.A DM.65'!$B$17,'All.A DM.65'!$G$17,IF(W12>='All.A DM.65'!$B$18,'All.A DM.65'!$G$18,IF(W12>='All.A DM.65'!$B$19,'All.A DM.65'!$G$19,IF(W12>='All.A DM.65'!$B$20,'All.A DM.65'!$G$20,IF(W12>='All.A DM.65'!$B$21,'All.A DM.65'!$G$21,IF(W12>='All.A DM.65'!$B$22,'All.A DM.65'!$G$22,'All.A DM.65'!$G$23)))))) -> FIS-V
B13: TrC (SLV) | C13: =L13 -> 712 | G13: l(SLV) | H13: =IF(C13<>0,1/C13,0) -> 0.001404494382 | L13: =ROUND('Dati Edificio'!D24*(C7/'Dati Edificio'!F24)^'Dati Edificio'!K24,0) -> 712 | N13: 10 - DISTRIB. FORZE SECONDO DEFORMATA MODALE -Ecc5% | O13: 180 | T13: 10 | V13: =IF(U13<='All.A DM.65'!$F$5,'All.A DM.65'!$G$5,IF(U13<='All.A DM.65'!$F$6,'All.A DM.65'!$G$6,IF(U13<='All.A DM.65'!$F$7,'All.A DM.65'!$G$7,IF(U13<='All.A DM.65'!$F$8,'All.A DM.65'!$G$8,IF(U13<='All.A DM.65'!$F$9,'All.A DM.65'!$G$9,IF(U13<='All.A DM.65'!$F$10,'All.A DM.65'!$G$10,IF(U13<='All.A DM.65'!$F$11,'All.A DM.65'!$G$11,'All.A DM.65'!$G$12))))))) -> A+PAM | X13: =IF(W13>='All.A DM.65'!$B$17,'All.A DM.65'!$G$17,IF(W13>='All.A DM.65'!$B$18,'All.A DM.65'!$G$18,IF(W13>='All.A DM.65'!$B$19,'All.A DM.65'!$G$19,IF(W13>='All.A DM.65'!$B$20,'All.A DM.65'!$G$20,IF(W13>='All.A DM.65'!$B$21,'All.A DM.65'!$G$21,IF(W13>='All.A DM.65'!$B$22,'All.A DM.65'!$G$22,'All.A DM.65'!$G$23)))))) -> FIS-V
B14: TrC (SLC) | C14: =L14 -> 1462 | G14: l(SLC) | H14: =IF(C14<>0,1/C14,IF($H$13<>0,0.49*$H$13,0)) -> 0.000683994528 | L14: =ROUND('Dati Edificio'!D25*(C8/'Dati Edificio'!F25)^'Dati Edificio'!K25,0) -> 1462 | N14: 11 - DISTRIB. FORZE SECONDO DEFORMATA MODALE -Ecc5% | O14: 90 | T14: 11 | V14: =IF(U14<='All.A DM.65'!$F$5,'All.A DM.65'!$G$5,IF(U14<='All.A DM.65'!$F$6,'All.A DM.65'!$G$6,IF(U14<='All.A DM.65'!$F$7,'All.A DM.65'!$G$7,IF(U14<='All.A DM.65'!$F$8,'All.A DM.65'!$G$8,IF(U14<='All.A DM.65'!$F$9,'All.A DM.65'!$G$9,IF(U14<='All.A DM.65'!$F$10,'All.A DM.65'!$G$10,IF(U14<='All.A DM.65'!$F$11,'All.A DM.65'!$G$11,'All.A DM.65'!$G$12))))))) -> A+PAM | X14: =IF(W14>='All.A DM.65'!$B$17,'All.A DM.65'!$G$17,IF(W14>='All.A DM.65'!$B$18,'All.A DM.65'!$G$18,IF(W14>='All.A DM.65'!$B$19,'All.A DM.65'!$G$19,IF(W14>='All.A DM.65'!$B$20,'All.A DM.65'!$G$20,IF(W14>='All.A DM.65'!$B$21,'All.A DM.65'!$G$21,IF(W14>='All.A DM.65'!$B$22,'All.A DM.65'!$G$22,'All.A DM.65'!$G$23)))))) -> FIS-V
N15: 12 - DISTRIB. FORZE SECONDO DEFORMATA MODALE -Ecc5% | O15: 270 | T15: 12 | V15: =IF(U15<='All.A DM.65'!$F$5,'All.A DM.65'!$G$5,IF(U15<='All.A DM.65'!$F$6,'All.A DM.65'!$G$6,IF(U15<='All.A DM.65'!$F$7,'All.A DM.65'!$G$7,IF(U15<='All.A DM.65'!$F$8,'All.A DM.65'!$G$8,IF(U15<='All.A DM.65'!$F$9,'All.A DM.65'!$G$9,IF(U15<='All.A DM.65'!$F$10,'All.A DM.65'!$G$10,IF(U15<='All.A DM.65'!$F$11,'All.A DM.65'!$G$11,'All.A DM.65'!$G$12))))))) -> A+PAM | X15: =IF(W15>='All.A DM.65'!$B$17,'All.A DM.65'!$G$17,IF(W15>='All.A DM.65'!$B$18,'All.A DM.65'!$G$18,IF(W15>='All.A DM.65'!$B$19,'All.A DM.65'!$G$19,IF(W15>='All.A DM.65'!$B$20,'All.A DM.65'!$G$20,IF(W15>='All.A DM.65'!$B$21,'All.A DM.65'!$G$21,IF(W15>='All.A DM.65'!$B$22,'All.A DM.65'!$G$22,'All.A DM.65'!$G$23)))))) -> FIS-V
B16: PERCENTUALE COSTO DI RICOSTRUZIONE | N16: 13 - DISTRIB. FORZE PROPORZIONALE ALLE MASSE -Ecc5% | O16: 0 | T16: 13 | V16: =IF(U16<='All.A DM.65'!$F$5,'All.A DM.65'!$G$5,IF(U16<='All.A DM.65'!$F$6,'All.A DM.65'!$G$6,IF(U16<='All.A DM.65'!$F$7,'All.A DM.65'!$G$7,IF(U16<='All.A DM.65'!$F$8,'All.A DM.65'!$G$8,IF(U16<='All.A DM.65'!$F$9,'All.A DM.65'!$G$9,IF(U16<='All.A DM.65'!$F$10,'All.A DM.65'!$G$10,IF(U16<='All.A DM.65'!$F$11,'All.A DM.65'!$G$11,'All.A DM.65'!$G$12))))))) -> A+PAM | X16: =IF(W16>='All.A DM.65'!$B$17,'All.A DM.65'!$G$17,IF(W16>='All.A DM.65'!$B$18,'All.A DM.65'!$G$18,IF(W16>='All.A DM.65'!$B$19,'All.A DM.65'!$G$19,IF(W16>='All.A DM.65'!$B$20,'All.A DM.65'!$G$20,IF(W16>='All.A DM.65'!$B$21,'All.A DM.65'!$G$21,IF(W16>='All.A DM.65'!$B$22,'All.A DM.65'!$G$22,'All.A DM.65'!$G$23)))))) -> FIS-V
B17: STATO LIMITE | C17: Trc | D17: l | E17: CR % | F17: l(SLi-1)-l(SLi) | H17: [CR(SLi-1)+CR(SLi)]/2 | N17: 14 - DISTRIB. FORZE PROPORZIONALE ALLE MASSE -Ecc5% | O17: 180 | T17: 14 | V17: =IF(U17<='All.A DM.65'!$F$5,'All.A DM.65'!$G$5,IF(U17<='All.A DM.65'!$F$6,'All.A DM.65'!$G$6,IF(U17<='All.A DM.65'!$F$7,'All.A DM.65'!$G$7,IF(U17<='All.A DM.65'!$F$8,'All.A DM.65'!$G$8,IF(U17<='All.A DM.65'!$F$9,'All.A DM.65'!$G$9,IF(U17<='All.A DM.65'!$F$10,'All.A DM.65'!$G$10,IF(U17<='All.A DM.65'!$F$11,'All.A DM.65'!$G$11,'All.A DM.65'!$G$12))))))) -> A+PAM | X17: =IF(W17>='All.A DM.65'!$B$17,'All.A DM.65'!$G$17,IF(W17>='All.A DM.65'!$B$18,'All.A DM.65'!$G$18,IF(W17>='All.A DM.65'!$B$19,'All.A DM.65'!$G$19,IF(W17>='All.A DM.65'!$B$20,'All.A DM.65'!$G$20,IF(W17>='All.A DM.65'!$B$21,'All.A DM.65'!$G$21,IF(W17>='All.A DM.65'!$B$22,'All.A DM.65'!$G$22,'All.A DM.65'!$G$23)))))) -> FIS-V
B18: SLID | C18: 10 | D18: 0.1 | E18: ='All.A DM.65'!G34 -> 0 | N18: 15 - DISTRIB. FORZE PROPORZIONALE ALLE MASSE -Ecc5% | O18: 90 | T18: 15 | V18: =IF(U18<='All.A DM.65'!$F$5,'All.A DM.65'!$G$5,IF(U18<='All.A DM.65'!$F$6,'All.A DM.65'!$G$6,IF(U18<='All.A DM.65'!$F$7,'All.A DM.65'!$G$7,IF(U18<='All.A DM.65'!$F$8,'All.A DM.65'!$G$8,IF(U18<='All.A DM.65'!$F$9,'All.A DM.65'!$G$9,IF(U18<='All.A DM.65'!$F$10,'All.A DM.65'!$G$10,IF(U18<='All.A DM.65'!$F$11,'All.A DM.65'!$G$11,'All.A DM.65'!$G$12))))))) -> A+PAM | X18: =IF(W18>='All.A DM.65'!$B$17,'All.A DM.65'!$G$17,IF(W18>='All.A DM.65'!$B$18,'All.A DM.65'!$G$18,IF(W18>='All.A DM.65'!$B$19,'All.A DM.65'!$G$19,IF(W18>='All.A DM.65'!$B$20,'All.A DM.65'!$G$20,IF(W18>='All.A DM.65'!$B$21,'All.A DM.65'!$G$21,IF(W18>='All.A DM.65'!$B$22,'All.A DM.65'!$G$22,'All.A DM.65'!$G$23)))))) -> FIS-V
B19: SLO | C19: =C11 -> 45 | D19: =H11 -> 0.02222222222 | E19: ='All.A DM.65'!$G$33 -> 0.07 | F19: =D18-D19 -> 0.07777777778 | H19: =(E18+E19)/2 -> 0.035 | N19: 16 - DISTRIB. FORZE PROPORZIONALE ALLE MASSE -Ecc5% | O19: 270 | T19: 16 | V19: =IF(U19<='All.A DM.65'!$F$5,'All.A DM.65'!$G$5,IF(U19<='All.A DM.65'!$F$6,'All.A DM.65'!$G$6,IF(U19<='All.A DM.65'!$F$7,'All.A DM.65'!$G$7,IF(U19<='All.A DM.65'!$F$8,'All.A DM.65'!$G$8,IF(U19<='All.A DM.65'!$F$9,'All.A DM.65'!$G$9,IF(U19<='All.A DM.65'!$F$10,'All.A DM.65'!$G$10,IF(U19<='All.A DM.65'!$F$11,'All.A DM.65'!$G$11,'All.A DM.65'!$G$12))))))) -> A+PAM | X19: =IF(W19>='All.A DM.65'!$B$17,'All.A DM.65'!$G$17,IF(W19>='All.A DM.65'!$B$18,'All.A DM.65'!$G$18,IF(W19>='All.A DM.65'!$B$19,'All.A DM.65'!$G$19,IF(W19>='All.A DM.65'!$B$20,'All.A DM.65'!$G$20,IF(W19>='All.A DM.65'!$B$21,'All.A DM.65'!$G$21,IF(W19>='All.A DM.65'!$B$22,'All.A DM.65'!$G$22,'All.A DM.65'!$G$23)))))) -> FIS-V
B20: SLD | C20: =C12 -> 75 | D20: =H12 -> 0.01333333333 | E20: ='All.A DM.65'!$G$32 -> 0.15 | F20: =D19-D20 -> 0.008888888889 | H20: =(E19+E20)/2 -> 0.11 | T20: Min | U20: =_xlfn.XLOOKUP(W20,W4:W19,U4:U19,0) -> 0.009822954617 | V20: =IF(U20<='All.A DM.65'!$F$5,'All.A DM.65'!$G$5,IF(U20<='All.A DM.65'!$F$6,'All.A DM.65'!$G$6,IF(U20<='All.A DM.65'!$F$7,'All.A DM.65'!$G$7,IF(U20<='All.A DM.65'!$F$8,'All.A DM.65'!$G$8,IF(U20<='All.A DM.65'!$F$9,'All.A DM.65'!$G$9,IF(U20<='All.A DM.65'!$F$10,'All.A DM.65'!$G$10,IF(U20<='All.A DM.65'!$F$11,'All.A DM.65'!$G$11,'All.A DM.65'!$G$12))))))) -> APAM | W20: =MIN(W4:W19) -> 1.177536232 | X20: =IF(W20>='All.A DM.65'!$B$17,'All.A DM.65'!$G$17,IF(W20>='All.A DM.65'!$B$18,'All.A DM.65'!$G$18,IF(W20>='All.A DM.65'!$B$19,'All.A DM.65'!$G$19,IF(W20>='All.A DM.65'!$B$20,'All.A DM.65'!$G$20,IF(W20>='All.A DM.65'!$B$21,'All.A DM.65'!$G$21,IF(W20>='All.A DM.65'!$B$22,'All.A DM.65'!$G$22,'All.A DM.65'!$G$23)))))) -> A+IS-V | Y20: MIN IS-V
B21: SLV | C21: =C13 -> 712 | D21: =H13 -> 0.001404494382 | E21: ='All.A DM.65'!$G$31 -> 0.5 | F21: 0.01192883895 | H21: 0.325 | O21: MIN. | P21: =MIN(P4:P19) -> 0.03 | Q21: =MIN(Q4:Q19) -> 0.04 | R21: =MIN(R4:R19) -> 0.13
B22: SLC | C22: =C14 -> 1462 | D22: =H14 -> 0.000683994528 | E22: ='All.A DM.65'!$G$30 -> 0.8 | F22: =D21-D22 -> 0.000720499854 | H22: 0.65
B23: SLR | C23: =C14 -> 1462 | D23: 0 | E23: ='All.A DM.65'!$G$29 -> 1
B25: PAM = | C25: S5i=2[l(SLi-1)-l(SLi)]*[CR(SLi-1)+CR(SLi)]/2+l(SLC)*CR(SLR) = | I25: =F19*H19+F20*H20+F21*H21+F22*H22+D22*E23 -> 0.008729192092
B26: IS-V = | C26: PGAC(SLV)/PGAD(SLV) = | I26: =C7/'Dati Edificio'!$F$24 -> 1
C28: CLASSE PAM | D28: =IF(MID(L28,2,1)="+",MID(L28,1,2),MID(L28,1,1)) -> A | E28: PAM | G28: CLASSE IS-V | H28: =IF(MID(L29,2,1)="+",MID(L29,1,2),MID(L29,1,1)) -> A+ | I28: IS-V | L28: =IF(I25<='All.A DM.65'!$F$5,'All.A DM.65'!$G$5,IF(I25<='All.A DM.65'!$F$6,'All.A DM.65'!$G$6,IF(I25<='All.A DM.65'!$F$7,'All.A DM.65'!$G$7,IF(I25<='All.A DM.65'!$F$8,'All.A DM.65'!$G$8,IF(I25<='All.A DM.65'!$F$9,'All.A DM.65'!$G$9,IF(I25<='All.A DM.65'!$F$10,'All.A DM.65'!$G$10,IF(I25<='All.A DM.65'!$F$11,'All.A DM.65'!$G$11,'All.A DM.65'!$G$12))))))) -> APAM
L29: =IF(I26>='All.A DM.65'!$B$17,'All.A DM.65'!$G$17,IF(I26>='All.A DM.65'!$B$18,'All.A DM.65'!$G$18,IF(I26>='All.A DM.65'!$B$19,'All.A DM.65'!$G$19,IF(I26>='All.A DM.65'!$B$20,'All.A DM.65'!$G$20,IF(I26>='All.A DM.65'!$B$21,'All.A DM.65'!$G$21,IF(I26>='All.A DM.65'!$B$22,'All.A DM.65'!$G$22,'All.A DM.65'!$G$23)))))) -> A+IS-V
F32: =IF($G$36="A+","<<","") ->  | G32: Stato di Fatto
F33: =IF($G$36="A","<<","") -> << | G33: CLASSE
F34: =IF($G$36="B","<<","") -> 
F35: =IF($G$36="C","<<","") ->  | G35: DI RISCHIO SISMICO
F36: =IF($G$36="D","<<","") ->  | G36: =IF(CODE(D28)=CODE(H28),IF(MID(D28,2,1)="+",H28,D28),IF(CODE(D28)<CODE(H28),H28,D28)) -> A | J36: =IF(G36<>D28,IF(G36<>H28,"SPECIFICARE CORRETTAMENTE CLASSE",""),"") -> 
F37: =IF($G$36="E","<<","") -> 
F38: =IF($G$36="F","<<","") -> 
F39: =IF($G$36="G","<<","") -> 

Sheet PushOver - Stato di Progetto (hidden)
B2: ANALISI STRUTTURA - STATO DI PROGETTO
N3: N. PUSH-OVER | O3: Angolo Sisma | P3: PGA(SLO) | Q3: PGA(SLD) | R3: PGA(SLV) | U3: PAM | V3: CLASSE PAM | W3: IS-V | X3: CLASSE IS-V
B4: ACCELERAZIONI AL SUOLO DI CAPACITA' | N4: 1 - DISTRIB. FORZE SECONDO DEFORMATA MODALE +Ecc5% | O4: 0 | P4: =0.047 -> 0.047 | Q4: =0.058 -> 0.058 | R4: 0.15 | S4: =IF(W4=$W$20,"X","") -> X | T4: 1 | U4: 0.00658614976 | V4: =IF(U4<='All.A DM.65'!$F$5,'All.A DM.65'!$G$5,IF(U4<='All.A DM.65'!$F$6,'All.A DM.65'!$G$6,IF(U4<='All.A DM.65'!$F$7,'All.A DM.65'!$G$7,IF(U4<='All.A DM.65'!$F$8,'All.A DM.65'!$G$8,IF(U4<='All.A DM.65'!$F$9,'All.A DM.65'!$G$9,IF(U4<='All.A DM.65'!$F$10,'All.A DM.65'!$G$10,IF(U4<='All.A DM.65'!$F$11,'All.A DM.65'!$G$11,'All.A DM.65'!$G$12))))))) -> APAM | W4: 1.358695652 | X4: =IF(W4>='All.A DM.65'!$B$17,'All.A DM.65'!$G$17,IF(W4>='All.A DM.65'!$B$18,'All.A DM.65'!$G$18,IF(W4>='All.A DM.65'!$B$19,'All.A DM.65'!$G$19,IF(W4>='All.A DM.65'!$B$20,'All.A DM.65'!$G$20,IF(W4>='All.A DM.65'!$B$21,'All.A DM.65'!$G$21,IF(W4>='All.A DM.65'!$B$22,'All.A DM.65'!$G$22,'All.A DM.65'!$G$23)))))) -> A+IS-V
B5: PGAC(SLO) | C5: 0.047 | N5: 2 - DISTRIB. FORZE SECONDO DEFORMATA MODALE +Ecc5% | O5: 180 | S5: =IF(W5=$W$20,"X","") ->  | T5: 2 | V5: =IF(U5<='All.A DM.65'!$F$5,'All.A DM.65'!$G$5,IF(U5<='All.A DM.65'!$F$6,'All.A DM.65'!$G$6,IF(U5<='All.A DM.65'!$F$7,'All.A DM.65'!$G$7,IF(U5<='All.A DM.65'!$F$8,'All.A DM.65'!$G$8,IF(U5<='All.A DM.65'!$F$9,'All.A DM.65'!$G$9,IF(U5<='All.A DM.65'!$F$10,'All.A DM.65'!$G$10,IF(U5<='All.A DM.65'!$F$11,'All.A DM.65'!$G$11,'All.A DM.65'!$G$12))))))) -> A+PAM | X5: =IF(W5>='All.A DM.65'!$B$17,'All.A DM.65'!$G$17,IF(W5>='All.A DM.65'!$B$18,'All.A DM.65'!$G$18,IF(W5>='All.A DM.65'!$B$19,'All.A DM.65'!$G$19,IF(W5>='All.A DM.65'!$B$20,'All.A DM.65'!$G$20,IF(W5>='All.A DM.65'!$B$21,'All.A DM.65'!$G$21,IF(W5>='All.A DM.65'!$B$22,'All.A DM.65'!$G$22,'All.A DM.65'!$G$23)))))) -> FIS-V
B6: PGAC(SLD) | C6: 0.058 | N6: 3 - DISTRIB. FORZE SECONDO DEFORMATA MODALE +Ecc5% | O6: 90 | S6: =IF(W6=$W$20,"X","") ->  | T6: 3 | V6: =IF(U6<='All.A DM.65'!$F$5,'All.A DM.65'!$G$5,IF(U6<='All.A DM.65'!$F$6,'All.A DM.65'!$G$6,IF(U6<='All.A DM.65'!$F$7,'All.A DM.65'!$G$7,IF(U6<='All.A DM.65'!$F$8,'All.A DM.65'!$G$8,IF(U6<='All.A DM.65'!$F$9,'All.A DM.65'!$G$9,IF(U6<='All.A DM.65'!$F$10,'All.A DM.65'!$G$10,IF(U6<='All.A DM.65'!$F$11,'All.A DM.65'!$G$11,'All.A DM.65'!$G$12))))))) -> A+PAM | X6: =IF(W6>='All.A DM.65'!$B$17,'All.A DM.65'!$G$17,IF(W6>='All.A DM.65'!$B$18,'All.A DM.65'!$G$18,IF(W6>='All.A DM.65'!$B$19,'All.A DM.65'!$G$19,IF(W6>='All.A DM.65'!$B$20,'All.A DM.65'!$G$20,IF(W6>='All.A DM.65'!$B$21,'All.A DM.65'!$G$21,IF(W6>='All.A DM.65'!$B$22,'All.A DM.65'!$G$22,'All.A DM.65'!$G$23)))))) -> FIS-V
B7: PGAC(SLV) | C7: 0.15 | N7: 4 - DISTRIB. FORZE SECONDO DEFORMATA MODALE +Ecc5% | O7: 270 | T7: 4 | V7: =IF(U7<='All.A DM.65'!$F$5,'All.A DM.65'!$G$5,IF(U7<='All.A DM.65'!$F$6,'All.A DM.65'!$G$6,IF(U7<='All.A DM.65'!$F$7,'All.A DM.65'!$G$7,IF(U7<='All.A DM.65'!$F$8,'All.A DM.65'!$G$8,IF(U7<='All.A DM.65'!$F$9,'All.A DM.65'!$G$9,IF(U7<='All.A DM.65'!$F$10,'All.A DM.65'!$G$10,IF(U7<='All.A DM.65'!$F$11,'All.A DM.65'!$G$11,'All.A DM.65'!$G$12))))))) -> A+PAM | X7: =IF(W7>='All.A DM.65'!$B$17,'All.A DM.65'!$G$17,IF(W7>='All.A DM.65'!$B$18,'All.A DM.65'!$G$18,IF(W7>='All.A DM.65'!$B$19,'All.A DM.65'!$G$19,IF(W7>='All.A DM.65'!$B$20,'All.A DM.65'!$G$20,IF(W7>='All.A DM.65'!$B$21,'All.A DM.65'!$G$21,IF(W7>='All.A DM.65'!$B$22,'All.A DM.65'!$G$22,'All.A DM.65'!$G$23)))))) -> FIS-V
B8: PGAC(SLC) | N8: 5 - DISTRIB. FORZE PROPORZIONALE ALLE MASSE +Ecc5% | O8: 0 | T8: 5 | V8: =IF(U8<='All.A DM.65'!$F$5,'All.A DM.65'!$G$5,IF(U8<='All.A DM.65'!$F$6,'All.A DM.65'!$G$6,IF(U8<='All.A DM.65'!$F$7,'All.A DM.65'!$G$7,IF(U8<='All.A DM.65'!$F$8,'All.A DM.65'!$G$8,IF(U8<='All.A DM.65'!$F$9,'All.A DM.65'!$G$9,IF(U8<='All.A DM.65'!$F$10,'All.A DM.65'!$G$10,IF(U8<='All.A DM.65'!$F$11,'All.A DM.65'!$G$11,'All.A DM.65'!$G$12))))))) -> A+PAM | X8: =IF(W8>='All.A DM.65'!$B$17,'All.A DM.65'!$G$17,IF(W8>='All.A DM.65'!$B$18,'All.A DM.65'!$G$18,IF(W8>='All.A DM.65'!$B$19,'All.A DM.65'!$G$19,IF(W8>='All.A DM.65'!$B$20,'All.A DM.65'!$G$20,IF(W8>='All.A DM.65'!$B$21,'All.A DM.65'!$G$21,IF(W8>='All.A DM.65'!$B$22,'All.A DM.65'!$G$22,'All.A DM.65'!$G$23)))))) -> FIS-V
N9: 6 - DISTRIB. FORZE PROPORZIONALE ALLE MASSE +Ecc5% | O9: 180 | T9: 6 | V9: =IF(U9<='All.A DM.65'!$F$5,'All.A DM.65'!$G$5,IF(U9<='All.A DM.65'!$F$6,'All.A DM.65'!$G$6,IF(U9<='All.A DM.65'!$F$7,'All.A DM.65'!$G$7,IF(U9<='All.A DM.65'!$F$8,'All.A DM.65'!$G$8,IF(U9<='All.A DM.65'!$F$9,'All.A DM.65'!$G$9,IF(U9<='All.A DM.65'!$F$10,'All.A DM.65'!$G$10,IF(U9<='All.A DM.65'!$F$11,'All.A DM.65'!$G$11,'All.A DM.65'!$G$12))))))) -> A+PAM | X9: =IF(W9>='All.A DM.65'!$B$17,'All.A DM.65'!$G$17,IF(W9>='All.A DM.65'!$B$18,'All.A DM.65'!$G$18,IF(W9>='All.A DM.65'!$B$19,'All.A DM.65'!$G$19,IF(W9>='All.A DM.65'!$B$20,'All.A DM.65'!$G$20,IF(W9>='All.A DM.65'!$B$21,'All.A DM.65'!$G$21,IF(W9>='All.A DM.65'!$B$22,'All.A DM.65'!$G$22,'All.A DM.65'!$G$23)))))) -> FIS-V
B10: PERIODI DI RITORNO TrC=TrD(PGAC/PGAD)h | F10: FREQUENZA MEDIA ANNUA DI SUPERAMENTO | N10: 7 - DISTRIB. FORZE PROPORZIONALE ALLE MASSE +Ecc5% | O10: 90 | T10: 7 | V10: =IF(U10<='All.A DM.65'!$F$5,'All.A DM.65'!$G$5,IF(U10<='All.A DM.65'!$F$6,'All.A DM.65'!$G$6,IF(U10<='All.A DM.65'!$F$7,'All.A DM.65'!$G$7,IF(U10<='All.A DM.65'!$F$8,'All.A DM.65'!$G$8,IF(U10<='All.A DM.65'!$F$9,'All.A DM.65'!$G$9,IF(U10<='All.A DM.65'!$F$10,'All.A DM.65'!$G$10,IF(U10<='All.A DM.65'!$F$11,'All.A DM.65'!$G$11,'All.A DM.65'!$G$12))))))) -> A+PAM | X10: =IF(W10>='All.A DM.65'!$B$17,'All.A DM.65'!$G$17,IF(W10>='All.A DM.65'!$B$18,'All.A DM.65'!$G$18,IF(W10>='All.A DM.65'!$B$19,'All.A DM.65'!$G$19,IF(W10>='All.A DM.65'!$B$20,'All.A DM.65'!$G$20,IF(W10>='All.A DM.65'!$B$21,'All.A DM.65'!$G$21,IF(W10>='All.A DM.65'!$B$22,'All.A DM.65'!$G$22,'All.A DM.65'!$G$23)))))) -> FIS-V
B11: TrC (SLO) | C11: =IF(L11>$L$13,$L$13,L11) -> 74 | G11: l(SLO) | H11: =IF(C11<>0,1/C11,IF($H$13<>0,1.67*$H$13,0)) -> 0.01351351351 | L11: =ROUND('Dati Edificio'!D22*(C5/'Dati Edificio'!F22)^'Dati Edificio'!K22,0) -> 74 | N11: 8 - DISTRIB. FORZE PROPORZIONALE ALLE MASSE +Ecc5% | O11: 270 | T11: 8 | V11: =IF(U11<='All.A DM.65'!$F$5,'All.A DM.65'!$G$5,IF(U11<='All.A DM.65'!$F$6,'All.A DM.65'!$G$6,IF(U11<='All.A DM.65'!$F$7,'All.A DM.65'!$G$7,IF(U11<='All.A DM.65'!$F$8,'All.A DM.65'!$G$8,IF(U11<='All.A DM.65'!$F$9,'All.A DM.65'!$G$9,IF(U11<='All.A DM.65'!$F$10,'All.A DM.65'!$G$10,IF(U11<='All.A DM.65'!$F$11,'All.A DM.65'!$G$11,'All.A DM.65'!$G$12))))))) -> A+PAM | X11: =IF(W11>='All.A DM.65'!$B$17,'All.A DM.65'!$G$17,IF(W11>='All.A DM.65'!$B$18,'All.A DM.65'!$G$18,IF(W11>='All.A DM.65'!$B$19,'All.A DM.65'!$G$19,IF(W11>='All.A DM.65'!$B$20,'All.A DM.65'!$G$20,IF(W11>='All.A DM.65'!$B$21,'All.A DM.65'!$G$21,IF(W11>='All.A DM.65'!$B$22,'All.A DM.65'!$G$22,'All.A DM.65'!$G$23)))))) -> FIS-V
B12: TrC (SLD) | C12: =IF(L12>$L$13,$L$13,L12) -> 122 | G12: l(SLD) | H12: =IF(C12<>0,1/C12,0) -> 0.008196721311 | L12: =ROUND('Dati Edificio'!D23*(C6/'Dati Edificio'!F23)^'Dati Edificio'!K23,0) -> 122 | N12: 9 - DISTRIB. FORZE SECONDO DEFORMATA MODALE -Ecc5% | O12: 0 | T12: 9 | V12: =IF(U12<='All.A DM.65'!$F$5,'All.A DM.65'!$G$5,IF(U12<='All.A DM.65'!$F$6,'All.A DM.65'!$G$6,IF(U12<='All.A DM.65'!$F$7,'All.A DM.65'!$G$7,IF(U12<='All.A DM.65'!$F$8,'All.A DM.65'!$G$8,IF(U12<='All.A DM.65'!$F$9,'All.A DM.65'!$G$9,IF(U12<='All.A DM.65'!$F$10,'All.A DM.65'!$G$10,IF(U12<='All.A DM.65'!$F$11,'All.A DM.65'!$G$11,'All.A DM.65'!$G$12))))))) -> A+PAM | X12: =IF(W12>='All.A DM.65'!$B$17,'All.A DM.65'!$G$17,IF(W12>='All.A DM.65'!$B$18,'All.A DM.65'!$G$18,IF(W12>='All.A DM.65'!$B$19,'All.A DM.65'!$G$19,IF(W12>='All.A DM.65'!$B$20,'All.A DM.65'!$G$20,IF(W12>='All.A DM.65'!$B$21,'All.A DM.65'!$G$21,IF(W12>='All.A DM.65'!$B$22,'All.A DM.65'!$G$22,'All.A DM.65'!$G$23)))))) -> FIS-V
B13: TrC (SLV) | C13: =L13 -> 1684 | G13: l(SLV) | H13: =IF(C13<>0,1/C13,0) -> 0.000593824228 | L13: =ROUND('Dati Edificio'!D24*(C7/'Dati Edificio'!F24)^'Dati Edificio'!K24,0) -> 1684 | N13: 10 - DISTRIB. FORZE SECONDO DEFORMATA MODALE -Ecc5% | O13: 180 | T13: 10 | V13: =IF(U13<='All.A DM.65'!$F$5,'All.A DM.65'!$G$5,IF(U13<='All.A DM.65'!$F$6,'All.A DM.65'!$G$6,IF(U13<='All.A DM.65'!$F$7,'All.A DM.65'!$G$7,IF(U13<='All.A DM.65'!$F$8,'All.A DM.65'!$G$8,IF(U13<='All.A DM.65'!$F$9,'All.A DM.65'!$G$9,IF(U13<='All.A DM.65'!$F$10,'All.A DM.65'!$G$10,IF(U13<='All.A DM.65'!$F$11,'All.A DM.65'!$G$11,'All.A DM.65'!$G$12))))))) -> A+PAM | X13: =IF(W13>='All.A DM.65'!$B$17,'All.A DM.65'!$G$17,IF(W13>='All.A DM.65'!$B$18,'All.A DM.65'!$G$18,IF(W13>='All.A DM.65'!$B$19,'All.A DM.65'!$G$19,IF(W13>='All.A DM.65'!$B$20,'All.A DM.65'!$G$20,IF(W13>='All.A DM.65'!$B$21,'All.A DM.65'!$G$21,IF(W13>='All.A DM.65'!$B$22,'All.A DM.65'!$G$22,'All.A DM.65'!$G$23)))))) -> FIS-V
B14: TrC (SLC) | C14: =L14 -> 0 | G14: l(SLC) | H14: =IF(C14<>0,1/C14,IF($H$13<>0,0.49*$H$13,0)) -> 0.0002909738717 | L14: =ROUND('Dati Edificio'!D25*(C8/'Dati Edificio'!F25)^'Dati Edificio'!K25,0) -> 0 | N14: 11 - DISTRIB. FORZE SECONDO DEFORMATA MODALE -Ecc5% | O14: 90 | T14: 11 | V14: =IF(U14<='All.A DM.65'!$F$5,'All.A DM.65'!$G$5,IF(U14<='All.A DM.65'!$F$6,'All.A DM.65'!$G$6,IF(U14<='All.A DM.65'!$F$7,'All.A DM.65'!$G$7,IF(U14<='All.A DM.65'!$F$8,'All.A DM.65'!$G$8,IF(U14<='All.A DM.65'!$F$9,'All.A DM.65'!$G$9,IF(U14<='All.A DM.65'!$F$10,'All.A DM.65'!$G$10,IF(U14<='All.A DM.65'!$F$11,'All.A DM.65'!$G$11,'All.A DM.65'!$G$12))))))) -> A+PAM | X14: =IF(W14>='All.A DM.65'!$B$17,'All.A DM.65'!$G$17,IF(W14>='All.A DM.65'!$B$18,'All.A DM.65'!$G$18,IF(W14>='All.A DM.65'!$B$19,'All.A DM.65'!$G$19,IF(W14>='All.A DM.65'!$B$20,'All.A DM.65'!$G$20,IF(W14>='All.A DM.65'!$B$21,'All.A DM.65'!$G$21,IF(W14>='All.A DM.65'!$B$22,'All.A DM.65'!$G$22,'All.A DM.65'!$G$23)))))) -> FIS-V
N15: 12 - DISTRIB. FORZE SECONDO DEFORMATA MODALE -Ecc5% | O15: 270 | T15: 12 | V15: =IF(U15<='All.A DM.65'!$F$5,'All.A DM.65'!$G$5,IF(U15<='All.A DM.65'!$F$6,'All.A DM.65'!$G$6,IF(U15<='All.A DM.65'!$F$7,'All.A DM.65'!$G$7,IF(U15<='All.A DM.65'!$F$8,'All.A DM.65'!$G$8,IF(U15<='All.A DM.65'!$F$9,'All.A DM.65'!$G$9,IF(U15<='All.A DM.65'!$F$10,'All.A DM.65'!$G$10,IF(U15<='All.A DM.65'!$F$11,'All.A DM.65'!$G$11,'All.A DM.65'!$G$12))))))) -> A+PAM | X15: =IF(W15>='All.A DM.65'!$B$17,'All.A DM.65'!$G$17,IF(W15>='All.A DM.65'!$B$18,'All.A DM.65'!$G$18,IF(W15>='All.A DM.65'!$B$19,'All.A DM.65'!$G$19,IF(W15>='All.A DM.65'!$B$20,'All.A DM.65'!$G$20,IF(W15>='All.A DM.65'!$B$21,'All.A DM.65'!$G$21,IF(W15>='All.A DM.65'!$B$22,'All.A DM.65'!$G$22,'All.A DM.65'!$G$23)))))) -> FIS-V
B16: PERCENTUALE COSTO DI RICOSTRUZIONE | N16: 13 - DISTRIB. FORZE PROPORZIONALE ALLE MASSE -Ecc5% | O16: 0 | T16: 13 | V16: =IF(U16<='All.A DM.65'!$F$5,'All.A DM.65'!$G$5,IF(U16<='All.A DM.65'!$F$6,'All.A DM.65'!$G$6,IF(U16<='All.A DM.65'!$F$7,'All.A DM.65'!$G$7,IF(U16<='All.A DM.65'!$F$8,'All.A DM.65'!$G$8,IF(U16<='All.A DM.65'!$F$9,'All.A DM.65'!$G$9,IF(U16<='All.A DM.65'!$F$10,'All.A DM.65'!$G$10,IF(U16<='All.A DM.65'!$F$11,'All.A DM.65'!$G$11,'All.A DM.65'!$G$12))))))) -> A+PAM | X16: =IF(W16>='All.A DM.65'!$B$17,'All.A DM.65'!$G$17,IF(W16>='All.A DM.65'!$B$18,'All.A DM.65'!$G$18,IF(W16>='All.A DM.65'!$B$19,'All.A DM.65'!$G$19,IF(W16>='All.A DM.65'!$B$20,'All.A DM.65'!$G$20,IF(W16>='All.A DM.65'!$B$21,'All.A DM.65'!$G$21,IF(W16>='All.A DM.65'!$B$22,'All.A DM.65'!$G$22,'All.A DM.65'!$G$23)))))) -> FIS-V
B17: STATO LIMITE | C17: Trc | D17: l | E17: CR % | F17: l(SLi-1)-l(SLi) | H17: [CR(SLi-1)+CR(SLi)]/2 | N17: 14 - DISTRIB. FORZE PROPORZIONALE ALLE MASSE -Ecc5% | O17: 180 | T17: 14 | V17: =IF(U17<='All.A DM.65'!$F$5,'All.A DM.65'!$G$5,IF(U17<='All.A DM.65'!$F$6,'All.A DM.65'!$G$6,IF(U17<='All.A DM.65'!$F$7,'All.A DM.65'!$G$7,IF(U17<='All.A DM.65'!$F$8,'All.A DM.65'!$G$8,IF(U17<='All.A DM.65'!$F$9,'All.A DM.65'!$G$9,IF(U17<='All.A DM.65'!$F$10,'All.A DM.65'!$G$10,IF(U17<='All.A DM.65'!$F$11,'All.A DM.65'!$G$11,'All.A DM.65'!$G$12))))))) -> A+PAM | X17: =IF(W17>='All.A DM.65'!$B$17,'All.A DM.65'!$G$17,IF(W17>='All.A DM.65'!$B$18,'All.A DM.65'!$G$18,IF(W17>='All.A DM.65'!$B$19,'All.A DM.65'!$G$19,IF(W17>='All.A DM.65'!$B$20,'All.A DM.65'!$G$20,IF(W17>='All.A DM.65'!$B$21,'All.A DM.65'!$G$21,IF(W17>='All.A DM.65'!$B$22,'All.A DM.65'!$G$22,'All.A DM.65'!$G$23)))))) -> FIS-V
B18: SLID | C18: 10 | D18: 0.1 | E18: ='All.A DM.65'!G34 -> 0 | N18: 15 - DISTRIB. FORZE PROPORZIONALE ALLE MASSE -Ecc5% | O18: 90 | T18: 15 | V18: =IF(U18<='All.A DM.65'!$F$5,'All.A DM.65'!$G$5,IF(U18<='All.A DM.65'!$F$6,'All.A DM.65'!$G$6,IF(U18<='All.A DM.65'!$F$7,'All.A DM.65'!$G$7,IF(U18<='All.A DM.65'!$F$8,'All.A DM.65'!$G$8,IF(U18<='All.A DM.65'!$F$9,'All.A DM.65'!$G$9,IF(U18<='All.A DM.65'!$F$10,'All.A DM.65'!$G$10,IF(U18<='All.A DM.65'!$F$11,'All.A DM.65'!$G$11,'All.A DM.65'!$G$12))))))) -> A+PAM | X18: =IF(W18>='All.A DM.65'!$B$17,'All.A DM.65'!$G$17,IF(W18>='All.A DM.65'!$B$18,'All.A DM.65'!$G$18,IF(W18>='All.A DM.65'!$B$19,'All.A DM.65'!$G$19,IF(W18>='All.A DM.65'!$B$20,'All.A DM.65'!$G$20,IF(W18>='All.A DM.65'!$B$21,'All.A DM.65'!$G$21,IF(W18>='All.A DM.65'!$B$22,'All.A DM.65'!$G$22,'All.A DM.65'!$G$23)))))) -> FIS-V
B19: SLO | C19: =C11 -> 74 | D19: =H11 -> 0.01351351351 | E19: ='All.A DM.65'!$G$33 -> 0.07 | F19: =D18-D19 -> 0.08648648649 | H19: =(E18+E19)/2 -> 0.035 | N19: 16 - DISTRIB. FORZE PROPORZIONALE ALLE MASSE -Ecc5% | O19: 270 | T19: 16 | V19: =IF(U19<='All.A DM.65'!$F$5,'All.A DM.65'!$G$5,IF(U19<='All.A DM.65'!$F$6,'All.A DM.65'!$G$6,IF(U19<='All.A DM.65'!$F$7,'All.A DM.65'!$G$7,IF(U19<='All.A DM.65'!$F$8,'All.A DM.65'!$G$8,IF(U19<='All.A DM.65'!$F$9,'All.A DM.65'!$G$9,IF(U19<='All.A DM.65'!$F$10,'All.A DM.65'!$G$10,IF(U19<='All.A DM.65'!$F$11,'All.A DM.65'!$G$11,'All.A DM.65'!$G$12))))))) -> A+PAM | X19: =IF(W19>='All.A DM.65'!$B$17,'All.A DM.65'!$G$17,IF(W19>='All.A DM.65'!$B$18,'All.A DM.65'!$G$18,IF(W19>='All.A DM.65'!$B$19,'All.A DM.65'!$G$19,IF(W19>='All.A DM.65'!$B$20,'All.A DM.65'!$G$20,IF(W19>='All.A DM.65'!$B$21,'All.A DM.65'!$G$21,IF(W19>='All.A DM.65'!$B$22,'All.A DM.65'!$G$22,'All.A DM.65'!$G$23)))))) -> FIS-V
B20: SLD | C20: =C12 -> 122 | D20: =H12 -> 0.008196721311 | E20: ='All.A DM.65'!$G$32 -> 0.15 | F20: =D19-D20 -> 0.005316792202 | H20: =(E19+E20)/2 -> 0.11 | T20: Min | U20: =_xlfn.XLOOKUP(W20,W4:W19,U4:U19,0) -> 0.00658614976 | V20: =IF(U20<='All.A DM.65'!$F$5,'All.A DM.65'!$G$5,IF(U20<='All.A DM.65'!$F$6,'All.A DM.65'!$G$6,IF(U20<='All.A DM.65'!$F$7,'All.A DM.65'!$G$7,IF(U20<='All.A DM.65'!$F$8,'All.A DM.65'!$G$8,IF(U20<='All.A DM.65'!$F$9,'All.A DM.65'!$G$9,IF(U20<='All.A DM.65'!$F$10,'All.A DM.65'!$G$10,IF(U20<='All.A DM.65'!$F$11,'All.A DM.65'!$G$11,'All.A DM.65'!$G$12))))))) -> APAM | W20: =MIN(W4:W19) -> 1.358695652 | X20: =IF(W20>='All.A DM.65'!$B$17,'All.A DM.65'!$G$17,IF(W20>='All.A DM.65'!$B$18,'All.A DM.65'!$G$18,IF(W20>='All.A DM.65'!$B$19,'All.A DM.65'!$G$19,IF(W20>='All.A DM.65'!$B$20,'All.A DM.65'!$G$20,IF(W20>='All.A DM.65'!$B$21,'All.A DM.65'!$G$21,IF(W20>='All.A DM.65'!$B$22,'All.A DM.65'!$G$22,'All.A DM.65'!$G$23)))))) -> A+IS-V | Y20: MIN IS-V
B21: SLV | C21: =C13 -> 1684 | D21: =H13 -> 0.000593824228 | E21: ='All.A DM.65'!$G$31 -> 0.5 | F21: 0.007602897083 | H21: 0.325 | O21: MIN. | P21: =MIN(P4:P19) -> 0.047 | Q21: =MIN(Q4:Q19) -> 0.058 | R21: =MIN(R4:R19) -> 0.15
B22: SLC | C22: =C14 -> 0 | D22: =H14 -> 0.0002909738717 | E22: ='All.A DM.65'!$G$30 -> 0.8 | F22: =D21-D22 -> 0.0003028503563 | H22: 0.65
B23: SLR | C23: =C14 -> 0 | D23: 0 | E23: ='All.A DM.65'!$G$29 -> 1
B25: PAM = | C25: S5i=2[l(SLi-1)-l(SLi)]*[CR(SLi-1)+CR(SLi)]/2+l(SLC)*CR(SLR) = | I25: =F19*H19+F20*H20+F21*H21+F22*H22+D22*E23 -> 0.006570642325
B26: IS-V = | C26: PGAC(SLV)/PGAD(SLV) = | I26: =C7/'Dati Edificio'!$F$24 -> 1.358695652
C28: CLASSE PAM | D28: =IF(MID(L28,2,1)="+",MID(L28,1,2),MID(L28,1,1)) -> A | E28: PAM | G28: CLASSE IS-V | H28: =IF(MID(L29,2,1)="+",MID(L29,1,2),MID(L29,1,1)) -> A+ | I28: IS-V | L28: =IF(I25<='All.A DM.65'!$F$5,'All.A DM.65'!$G$5,IF(I25<='All.A DM.65'!$F$6,'All.A DM.65'!$G$6,IF(I25<='All.A DM.65'!$F$7,'All.A DM.65'!$G$7,IF(I25<='All.A DM.65'!$F$8,'All.A DM.65'!$G$8,IF(I25<='All.A DM.65'!$F$9,'All.A DM.65'!$G$9,IF(I25<='All.A DM.65'!$F$10,'All.A DM.65'!$G$10,IF(I25<='All.A DM.65'!$F$11,'All.A DM.65'!$G$11,'All.A DM.65'!$G$12))))))) -> APAM
L29: =IF(I26>='All.A DM.65'!$B$17,'All.A DM.65'!$G$17,IF(I26>='All.A DM.65'!$B$18,'All.A DM.65'!$G$18,IF(I26>='All.A DM.65'!$B$19,'All.A DM.65'!$G$19,IF(I26>='All.A DM.65'!$B$20,'All.A DM.65'!$G$20,IF(I26>='All.A DM.65'!$B$21,'All.A DM.65'!$G$21,IF(I26>='All.A DM.65'!$B$22,'All.A DM.65'!$G$22,'All.A DM.65'!$G$23)))))) -> A+IS-V
F32: =IF($G$36="A+","<<","") ->  | G32: Stato di Progetto
F33: =IF($G$36="A","<<","") -> << | G33: CLASSE
F34: =IF($G$36="B","<<","") -> 
F35: =IF($G$36="C","<<","") ->  | G35: DI RISCHIO SISMICO
F36: =IF($G$36="D","<<","") ->  | G36: =IF(CODE(D28)=CODE(H28),IF(MID(D28,2,1)="+",H28,D28),IF(CODE(D28)<CODE(H28),H28,D28)) -> A | J36: =IF(G36<>D28,IF(G36<>H28,"SPECIFICARE CORRETTAMENTE CLASSE",""),"") -> 
F37: =IF($G$36="E","<<","") -> 
F38: =IF($G$36="F","<<","") -> 
F39: =IF($G$36="G","<<","") -> 

Sheet All.A DM.65
B3: TABELLA 1
B4: PAM | G4: Classe PAM
E5: <= | F5: 0.005 | G5: A+PAM
B6: 0.005 | C6: < | E6: <= | F6: 0.01 | G6: APAM
B7: 0.01 | C7: < | E7: <= | F7: 0.015 | G7: BPAM
B8: 0.015 | C8: < | E8: <= | F8: 0.025 | G8: CPAM
B9: 0.025 | C9: < | E9: <= | F9: 0.035 | G9: DPAM
B10: 0.035 | C10: < | E10: <= | F10: 0.045 | G10: EPAM
B11: 0.045 | C11: < | E11: <= | F11: 0.075 | G11: FPAM
B12: 0.075 | C12: < | G12: GPAM
B15: TABELLA 2
B16: IS | G16: Classe IS-V
B17: 1 | C17: <= | G17: A+IS-V
B18: 0.8 | C18: <= | E18: < | F18: 1 | G18: AIS-V
B19: 0.6 | C19: <= | E19: < | F19: 0.8 | G19: BIS-V
B20: 0.45 | C20: <= | E20: < | F20: 0.6 | G20: CIS-V
B21: 0.3 | C21: <= | E21: < | F21: 0.45 | G21: DIS-V
B22: 0.15 | C22: <= | E22: < | F22: 0.3 | G22: EIS-V
E23: < | F23: 0.15 | G23: FIS-V
F27: TABELLA 3
F28: Stato Limite | G28: CR(%)
F29: SLR | G29: 1
F30: SLC | G30: 0.8
F31: SLV | G31: 0.5
F32: SLD | G32: 0.15
F33: SLO | G33: 0.07
F34: SLID | G34: 0
B41: h= | C41: 1/ | D41: 0.49 | E41: per ag ≥ 0,25g | H41: =1/D41 -> 2.040816327
B42: h= | C42: 1/ | D42: 0.43 | E42: per 0,25g ≥ ag ≥ 0,15 g | H42: =1/D42 -> 2.325581395
B43: h= | C43: 1/ | D43: 0.356 | E43: per 0,15g ≥ ag ≥ 0,05 g | H43: 2.808988764
B44: h= | C44: 1/ | D44: 0.34 | E44: per 0,05 g ≥ ag | H44: 2.941176471
